lending/lending_fUSD_20241211
["ID","MTS","AMOUNT","RATE_DAILY","PERIOD"]
[344932552,1733890252243,-500.0,0.00010994,2]
[344932553,1733890252253,-500.0,0.00010994,2]
[344932554,1733890252264,-500.0,0.00010994,2]
[344932555,1733890252276,-500.0,0.00010994,2]
[344932556,1733890252285,-500.0,0.00010994,2]
[344932557,1733890252296,-500.0,0.00010994,2]
[344932558,1733890252307,-500.0,0.00010994,2]
[344932559,1733890252317,-500.0,0.00010994,2]
[344932560,1733890252327,-500.0,0.00010994,2]
[344932561,1733890252337,-500.0,0.00010994,2]
[344932562,1733890252347,-500.0,0.00010994,2]
[344932563,1733890252358,-500.0,0.00010994,2]
[344932564,1733890252368,-1414.83,0.00010994,2]
[344932565,1733890252378,-500.0,0.00010994,2]
[344932566,1733890252388,-500.0,0.00010994,2]
[344932567,1733890252398,-500.0,0.00010994,2]
[344932568,1733890252408,-500.0,0.00010994,2]
[344932569,1733890252417,-500.0,0.00010994,2]
[344932570,1733890252426,-500.0,0.00010994,2]
[344932571,1733890252436,-500.0,0.00010994,2]
[344932572,1733890252450,-1162.46,0.00010994,2]
[344932573,1733890252460,-500.0,0.00010994,2]
[344932574,1733890252470,-500.0,0.00010994,2]
[344932575,1733890252479,-361.69222261,0.00010994,2]
[344932576,1733890252488,-500.0,0.00010994,2]
[344932577,1733890252497,-500.0,0.00010994,2]
[344932578,1733890252506,-223.31733893,0.00010994,2]
[344932579,1733890252515,-500.0,0.00010994,2]
[344932580,1733890252525,-212.94404211,0.00010994,2]
[344932581,1733890252534,-500.0,0.00010994,2]
[344932582,1733890252544,-500.0,0.00010994,2]
[344932583,1733890252553,-150.72,0.00010994,2]
[344932584,1733890252562,-500.0,0.00010994,2]
[344932585,1733890252571,-500.0,0.00010994,2]
[344932586,1733890252580,-500.0,0.00010994,2]
[344932587,1733890252590,-214.06645182,0.00010994,2]
[344932588,1733890252599,-500.0,0.00010994,2]
[344932589,1733890252608,-401.52,0.00010994,2]
[344932590,1733890252618,-500.0,0.00010994,2]
[344932591,1733890252627,-500.0,0.00010994,2]
[344932592,1733890252637,-500.0,0.00010994,2]
[344932593,1733890252646,-500.0,0.00010994,2]
[344932594,1733890252656,-500.0,0.00010994,2]
[344932595,1733890252665,-500.0,0.00010994,2]
[344932596,1733890252675,-500.0,0.00010994,2]
[344932597,1733890252684,-500.0,0.00010994,2]
[344932598,1733890252697,-500.0,0.00010994,2]
[344932599,1733890252707,-500.0,0.00010994,2]
[344932600,1733890252717,-500.0,0.00010994,2]
[344932601,1733890252726,-500.0,0.00010994,2]
[344932602,1733890252736,-500.0,0.00010994,2]
[344932603,1733890252747,-500.0,0.00010994,2]
[344932604,1733890252758,-1057.54,0.00010994,2]
[344932605,1733890252767,-500.0,0.00010994,2]
[344932606,1733890252776,-564.94,0.00010994,2]
[344932607,1733890252785,-2052.48,0.00010994,2]
[344932608,1733890252794,-500.0,0.00010994,2]
[344932609,1733890252804,-500.0,0.00010994,2]
[344932610,1733890252814,-500.0,0.00010994,2]
[344932611,1733890252823,-500.0,0.00010994,2]
[344932612,1733890252832,-500.0,0.00010994,2]
[344932613,1733890252842,-500.0,0.00010994,2]
[344932614,1733890252851,-500.0,0.00010994,2]
[344932615,1733890252861,-500.0,0.00010994,2]
[344932616,1733890252870,-500.0,0.00010994,2]
[344932617,1733890252880,-500.0,0.00010994,2]
[344932618,1733890252889,-2097.98,0.00010994,2]
[344932619,1733890252899,-500.0,0.00010994,2]
[344932620,1733890252908,-266.573039,0.00010994,2]
[344932621,1733890252919,-500.0,0.00010994,2]
[344932622,1733890252929,-500.0,0.00010994,2]
[344932623,1733890252938,-500.0,0.00010994,2]
[344932624,1733890252952,-500.0,0.00010994,2]
[344932625,1733890252962,-500.0,0.00010994,2]
[344932626,1733890252971,-500.0,0.00010994,2]
[344932627,1733890252981,-247.636793,0.00010994,2]
[344932628,1733890252991,-500.0,0.00010994,2]
[344932629,1733890253000,-455.26868807,0.00010994,2]
[344932630,1733890253010,-500.0,0.00010994,2]
[344932631,1733890253019,-500.0,0.00010994,2]
[344932632,1733890253029,-500.0,0.00010994,2]
[344932633,1733890253038,-664.34,0.00010994,2]
[344932634,1733890253048,-500.0,0.00010994,2]
[344932635,1733890253057,-500.0,0.00010994,2]
[344932636,1733890253067,-500.0,0.00010994,2]
[344932637,1733890253076,-500.0,0.00010994,2]
[344932638,1733890253086,-414.33107318,0.00010994,2]
[344932639,1733890253096,-500.0,0.00010994,2]
[344932640,1733890253106,-500.0,0.00010994,2]
[344932641,1733890253116,-500.0,0.00010994,2]
[344932642,1733890253125,-170.9469403,0.00010994,2]
[344932643,1733890253135,-1955.85,0.00010994,2]
[344932644,1733890253144,-500.0,0.00010994,2]
[344932645,1733890253154,-512.91,0.00010994,2]
[344932646,1733890253163,-1249.05,0.00010994,2]
[344932647,1733890253173,-500.0,0.00010994,2]
[344932648,1733890253182,-500.0,0.00010994,2]
[344932649,1733890253191,-613.63,0.00010994,2]
[344932650,1733890253206,-500.0,0.00010994,2]
[344932651,1733890253216,-500.0,0.00010994,2]
[344932652,1733890253226,-500.0,0.00010994,2]
[344932653,1733890253236,-500.0,0.00010994,2]
[344932654,1733890253245,-500.0,0.00010994,2]
[344932655,1733890253255,-9566.21,0.00010994,2]
[344932656,1733890253265,-500.0,0.00010994,2]
[344932657,1733890253277,-500.0,0.00010994,2]
[344932658,1733890253286,-1163.3,0.00010994,2]
[344932659,1733890253296,-1541.64,0.00010994,2]
[344932660,1733890253307,-500.0,0.00010994,2]
[344932661,1733890253316,-500.0,0.00010994,2]
[344932662,1733890253326,-500.0,0.00010994,2]
[344932663,1733890253336,-517.14476586,0.00010994,2]
[344932664,1733890253345,-705.73,0.00010994,2]
[344932665,1733890253356,-783.74,0.00010994,2]
[344932666,1733890253366,-500.0,0.00010994,2]
[344932667,1733890253376,-500.0,0.00010994,2]
[344932668,1733890253385,-500.0,0.00010994,2]
[344932669,1733890253395,-2721.66,0.00010994,2]
[344932670,1733890253404,-500.0,0.00010994,2]
[344932671,1733890253413,-500.0,0.00010994,2]
[344932672,1733890253422,-500.0,0.00010994,2]
[344932673,1733890253432,-649.37,0.00010994,2]
[344932674,1733890253441,-500.0,0.00010994,2]
[344932675,1733890253458,-669.48,0.00010994,2]
[344932676,1733890253467,-500.0,0.00010994,2]
[344932677,1733890253476,-517.73236676,0.00010994,2]
[344932678,1733890253485,-649.03,0.00010994,2]
[344932679,1733890253495,-1583.61,0.00010994,2]
[344932680,1733890253504,-500.0,0.00010994,2]
[344932681,1733890253514,-500.0,0.00010994,2]
[344932682,1733890253524,-979.24,0.00010994,2]
[344932683,1733890253533,-500.0,0.00010994,2]
[344932684,1733890253542,-1473.99,0.00010994,2]
[344932685,1733890253551,-500.0,0.00010994,2]
[344932686,1733890253560,-1580.46,0.00010994,2]
[344932687,1733890253569,-500.0,0.00010994,2]
[344932688,1733890253579,-500.0,0.00010994,2]
[344932689,1733890253588,-540.43,0.00010994,2]
[344932690,1733890253598,-500.0,0.00010994,2]
[344932691,1733890253607,-500.0,0.00010994,2]
[344932692,1733890253616,-5178.09,0.00010994,2]
[344932693,1733890253626,-500.0,0.00010994,2]
[344932694,1733890253635,-500.0,0.00010994,2]
[344932695,1733890253644,-3019.06,0.00010994,2]
[344932696,1733890253654,-500.0,0.00010994,2]
[344932697,1733890253668,-500.0,0.00010994,2]
[344932698,1733890253678,-500.0,0.00010994,2]
[344932699,1733890253688,-500.0,0.00010994,2]
[344932700,1733890253702,-500.0,0.00010994,2]
[344932701,1733890253712,-500.0,0.00010994,2]
[344932702,1733890253722,-500.0,0.00010994,2]
[344932703,1733890253731,-500.0,0.00010994,2]
[344932704,1733890253741,-500.0,0.00010994,2]
[344932705,1733890253751,-746.42,0.00010994,2]
[344932706,1733890253761,-500.0,0.00010994,2]
[344932707,1733890253770,-500.0,0.00010994,2]
[344932708,1733890253780,-812.53,0.00010994,2]
[344932709,1733890253789,-500.0,0.00010994,2]
[344932710,1733890253799,-5595.96,0.00010994,2]
[344932711,1733890253808,-500.0,0.00010994,2]
[344932712,1733890253820,-500.0,0.00010994,2]
[344932713,1733890253830,-500.0,0.00010994,2]
[344932714,1733890253840,-500.0,0.00010994,2]
[344932715,1733890253850,-635.96231794,0.00010994,2]
[344932716,1733890253859,-570.66,0.00010994,2]
[344932717,1733890253869,-500.0,0.00010994,2]
[344932718,1733890253879,-500.0,0.00010994,2]
[344932719,1733890253888,-500.0,0.00010994,2]
[344932720,1733890253898,-1000.0,0.00010994,2]
[344932721,1733890253908,-500.0,0.00010994,2]
[344932722,1733890253918,-4260.13,0.00010994,2]
[344932723,1733890253927,-500.0,0.00010994,2]
[344932724,1733890253937,-500.0,0.00010994,2]
[344932725,1733890253950,-500.0,0.00010994,2]
[344932726,1733890253960,-170.5351262,0.00010994,2]
[344932727,1733890253970,-500.0,0.00010994,2]
[344932728,1733890253979,-500.0,0.00010994,2]
[344932729,1733890253989,-208.0,0.00010995,2]
[344932730,1733890253999,-208.0,0.00010995,2]
[344932731,1733890254009,-208.0,0.00010995,2]
[344932732,1733890254019,-208.0,0.00010995,2]
[344932733,1733890254028,-208.0,0.00010995,2]
[344932734,1733890254038,-208.0,0.00010995,2]
[344932735,1733890254048,-208.0,0.00010995,2]
[344932736,1733890254057,-208.0,0.00010995,2]
[344932737,1733890254135,-208.0,0.00010995,2]
[344932738,1733890254144,-208.0,0.00010995,2]
[344932739,1733890254154,-208.0,0.00010995,2]
[344932740,1733890254163,-208.0,0.00010995,2]
[344932741,1733890254172,-208.0,0.00010995,2]
[344932742,1733890254181,-208.0,0.00010995,2]
[344932743,1733890254190,-208.0,0.00010995,2]
[344932744,1733890254203,-208.0,0.00010995,2]
[344932745,1733890254214,-208.0,0.00010995,2]
[344932746,1733890254223,-208.0,0.00010995,2]
[344932747,1733890254233,-500.0,0.00010995,2]
[344932748,1733890254242,-500.0,0.00010995,2]
[344932749,1733890254251,-500.0,0.00010995,2]
[344932750,1733890254261,-500.0,0.00010995,2]
[344932751,1733890254271,-500.0,0.00010995,2]
[344932752,1733890254281,-500.0,0.00010995,2]
[344932753,1733890254290,-500.0,0.00010995,2]
[344932754,1733890254298,-500.0,0.00010995,2]
[344932755,1733890254307,-676.81,0.00010995,2]
[344932756,1733890254317,-500.0,0.00010995,2]
[344932757,1733890254326,-1246.54,0.00010995,2]
[344932758,1733890254335,-952.78,0.00010995,2]
[344932759,1733890254345,-904.07,0.00010995,2]
[344932760,1733890254355,-500.0,0.00010995,2]
[344932761,1733890254365,-537.33,0.00010995,2]
[344932762,1733890254376,-500.0,0.00010995,2]
[344932763,1733890254385,-500.0,0.00010995,2]
[344932764,1733890254396,-1214.48,0.00010995,2]
[344932765,1733890254406,-500.0,0.00010995,2]
[344932766,1733890254415,-544.12,0.00010995,2]
[344932767,1733890254424,-500.0,0.00010995,2]
[344932768,1733890254432,-917.02,0.00010995,2]
[344932769,1733890254440,-500.0,0.00010995,2]
[344932770,1733890254450,-485.39458222,0.00010995,2]
[344932771,1733890254458,-500.0,0.00010995,2]
[344932772,1733890254466,-500.0,0.00010995,2]
[344932773,1733890254474,-500.0,0.00010995,2]
[344932774,1733890254483,-500.0,0.00010995,2]
[344932775,1733890254491,-500.0,0.00010995,2]
[344932776,1733890254506,-500.0,0.00010995,2]
[344932777,1733890254514,-500.0,0.00010995,2]
[344932778,1733890254523,-544.66,0.00010995,2]
[344932779,1733890254531,-500.0,0.00010995,2]
[344932780,1733890254538,-755.89,0.00010995,2]
[344932781,1733890254546,-500.0,0.00010995,2]
[344932782,1733890254554,-500.0,0.00010995,2]
[344932783,1733890254562,-500.0,0.00010995,2]
[344932784,1733890254571,-500.0,0.00010995,2]
[344932785,1733890254579,-500.0,0.00010995,2]
[344932786,1733890254586,-500.0,0.00010995,2]
[344932787,1733890254594,-583.17,0.00010995,2]
[344932788,1733890254602,-500.0,0.00010995,2]
[344932789,1733890254609,-500.0,0.00010995,2]
[344932790,1733890254617,-681.85,0.00010995,2]
[344932791,1733890254625,-500.0,0.00010995,2]
[344932792,1733890254634,-500.0,0.00010995,2]
[344932793,1733890254641,-500.0,0.00010995,2]
[344932794,1733890254649,-500.0,0.00010995,2]
[344932795,1733890254657,-665.93,0.00010995,2]
[344932796,1733890254664,-500.0,0.00010995,2]
[344932797,1733890254672,-500.0,0.00010995,2]
[344932798,1733890254679,-681.14,0.00010995,2]
[344932799,1733890254686,-639.83,0.00010995,2]
[344932800,1733890254695,-500.0,0.00010995,2]
[344932801,1733890254703,-500.0,0.00010995,2]
[344932802,1733890254711,-500.0,0.00010995,2]
[344932803,1733890254719,-1206.89,0.00010995,2]
[344932804,1733890254727,-1216.1,0.00010995,2]
[344932805,1733890254736,-500.0,0.00010995,2]
[344932806,1733890254744,-500.0,0.00010995,2]
[344932807,1733890254752,-500.0,0.00010995,2]
[344932808,1733890254760,-500.0,0.00010995,2]
[344932809,1733890254769,-500.0,0.00010995,2]
[344932810,1733890254776,-500.0,0.00010995,2]
[344932811,1733890254784,-613.03,0.00010995,2]
[344932812,1733890254791,-245.94942336,0.00010995,2]
[344932813,1733890254800,-500.0,0.00010995,2]
[344932814,1733890254807,-500.0,0.00010995,2]
[344932815,1733890254815,-500.0,0.00010995,2]
[344932816,1733890254822,-500.0,0.00010995,2]
[344932817,1733890254831,-500.0,0.00010995,2]
[344932818,1733890254838,-500.0,0.00010995,2]
[344932819,1733890254846,-500.0,0.00010995,2]
[344932820,1733890254854,-500.0,0.00010995,2]
[344932821,1733890254862,-500.0,0.00010995,2]
[344932822,1733890254871,-500.0,0.00010995,2]
[344932823,1733890254878,-500.0,0.00010995,2]
[344932824,1733890254884,-500.0,0.00010995,2]
[344932825,1733890254891,-500.0,0.00010995,2]
[344932826,1733890254897,-500.0,0.00010995,2]
[344932827,1733890254903,-500.0,0.00010995,2]
[344932828,1733890254909,-500.0,0.00010995,2]
[344932829,1733890254915,-500.0,0.00010995,2]
[344932830,1733890254922,-500.0,0.00010995,2]
[344932831,1733890254930,-500.0,0.00010995,2]
[344932832,1733890254939,-175.40012082,0.00010995,2]
[344932833,1733890254950,-1414.83,0.00010995,2]
[344932834,1733890254959,-620.90327344,0.00010995,2]
[344932835,1733890254968,-500.0,0.00010995,2]
[344932836,1733890254978,-276.84776457,0.00010995,2]
[344932837,1733890254987,-500.0,0.00010995,2]
[344932838,1733890254997,-500.0,0.00010995,2]
[344932839,1733890255006,-317.2289796,0.00010995,2]
[344932840,1733890255015,-500.0,0.00010995,2]
[344932841,1733890255024,-1162.46,0.00010995,2]
[344932842,1733890255033,-500.0,0.00010995,2]
[344932843,1733890255042,-500.0,0.00010995,2]
[344932844,1733890255051,-347.16858639,0.00010995,2]
[344932845,1733890255060,-500.0,0.00010995,2]
[344932846,1733890255069,-500.0,0.00010995,2]
[344932847,1733890255078,-500.0,0.00010995,2]
[344932848,1733890255087,-500.0,0.00010995,2]
[344932849,1733890255096,-500.0,0.00010995,2]
[344932850,1733890255106,-500.0,0.00010995,2]
[344932851,1733890255115,-500.0,0.00010995,2]
[344932852,1733890255124,-500.0,0.00010995,2]
[344932853,1733890255134,-500.0,0.00010995,2]
[344932854,1733890255143,-500.0,0.00010995,2]
[344932855,1733890255152,-500.0,0.00010995,2]
[344932856,1733890255161,-500.0,0.00010995,2]
[344932857,1733890255171,-212.62998597,0.00010995,2]
[344932858,1733890255180,-375.78025964,0.00010995,2]
[344932859,1733890255189,-500.0,0.00010995,2]
[344932860,1733890255199,-500.0,0.00010995,2]
[344932861,1733890255209,-603.88,0.00010995,2]
[344932862,1733890255218,-500.0,0.00010995,2]
[344932863,1733890255228,-246.74554932,0.00010995,2]
[344932864,1733890255237,-403.28,0.00010995,2]
[344932865,1733890255246,-1057.54,0.00010995,2]
[344932866,1733890255255,-500.0,0.00010995,2]
[344932867,1733890255265,-564.94,0.00010995,2]
[344932868,1733890255277,-2052.48,0.00010995,2]
[344932869,1733890255287,-500.0,0.00010995,2]
[344932870,1733890255296,-500.0,0.00010995,2]
[344932871,1733890255305,-500.0,0.00010995,2]
[344932872,1733890255315,-500.0,0.00010995,2]
[344932873,1733890255324,-500.0,0.00010995,2]
[344932874,1733890255334,-500.0,0.00010995,2]
[344932875,1733890255344,-500.0,0.00010995,2]
[344932876,1733890255354,-500.0,0.00010995,2]
[344932877,1733890255363,-512.35243678,0.00010995,2]
[344932878,1733890255373,-175.74,0.00010995,2]
[344932879,1733890255383,-2097.98,0.00010995,2]
[344932880,1733890255392,-500.0,0.00010995,2]
[344932881,1733890255401,-500.0,0.00010995,2]
[344932882,1733890255411,-500.0,0.00010995,2]
[344932883,1733890255420,-500.0,0.00010995,2]
[344932884,1733890255430,-500.0,0.00010995,2]
[344932885,1733890255440,-500.0,0.00010995,2]
[344932886,1733890255452,-500.0,0.00010995,2]
[344932887,1733890255462,-247.636793,0.00010995,2]
[344932888,1733890255472,-500.0,0.00010995,2]
[344932889,1733890255482,-500.0,0.00010995,2]
[344932890,1733890255491,-500.0,0.00010995,2]
[344932891,1733890255500,-589.73,0.00010995,2]
[344932892,1733890255510,-500.0,0.00010995,2]
[344932893,1733890255522,-664.34,0.00010995,2]
[344932894,1733890255531,-828.48,0.00010995,2]
[344932895,1733890255542,-500.0,0.00010995,2]
[344932896,1733890255552,-500.0,0.00010995,2]
[344932897,1733890255562,-500.0,0.00010995,2]
[344932898,1733890255572,-500.0,0.00010995,2]
[344932899,1733890255582,-500.0,0.00010995,2]
[344932900,1733890255592,-500.0,0.00010995,2]
[344932901,1733890255602,-500.0,0.00010995,2]
[344932902,1733890255612,-1955.85,0.00010995,2]
[344932903,1733890255622,-500.0,0.00010995,2]
[344932904,1733890255632,-534.73,0.00010995,2]
[344932905,1733890255642,-512.91,0.00010995,2]
[344932906,1733890255652,-1249.05,0.00010995,2]
[344932907,1733890255661,-500.0,0.00010995,2]
[344932908,1733890255671,-500.0,0.00010995,2]
[344932909,1733890255680,-613.63,0.00010995,2]
[344932910,1733890255690,-387.69233057,0.00010995,2]
[344932911,1733890255701,-500.0,0.00010995,2]
[344932912,1733890255711,-619.48,0.00010995,2]
[344932913,1733890255720,-500.0,0.00010995,2]
[344932914,1733890255735,-500.0,0.00010995,2]
[344932915,1733890255744,-9566.21,0.00010995,2]
[344932916,1733890255754,-500.0,0.00010995,2]
[344932917,1733890255764,-500.0,0.00010995,2]
[344932918,1733890255774,-500.0,0.00010995,2]
[344932919,1733890255783,-500.0,0.00010995,2]
[344932920,1733890255793,-1163.3,0.00010995,2]
[344932921,1733890255803,-1541.64,0.00010995,2]
[344932922,1733890255812,-500.0,0.00010995,2]
[344932923,1733890255822,-500.0,0.00010995,2]
[344932924,1733890255832,-500.0,0.00010995,2]
[344932925,1733890255843,-500.0,0.00010995,2]
[344932926,1733890255856,-500.0,0.00010995,2]
[344932927,1733890255865,-500.0,0.00010995,2]
[344932928,1733890255875,-2220.99,0.00010995,2]
[344932929,1733890255885,-705.73,0.00010995,2]
[344932930,1733890255894,-1815.2,0.00010995,2]
[344932931,1733890255904,-783.74,0.00010995,2]
[344932932,1733890255914,-500.0,0.00010995,2]
[344932933,1733890255923,-500.0,0.00010995,2]
[344932934,1733890255933,-1151.2,0.00010995,2]
[344932935,1733890255942,-500.0,0.00010995,2]
[344932936,1733890255959,-2721.66,0.00010995,2]
[344932937,1733890255968,-177.41374004,0.00010995,2]
[344932938,1733890255982,-500.0,0.00010995,2]
[344932939,1733890255991,-500.0,0.00010995,2]
[344932940,1733890256002,-649.37,0.00010995,2]
[344932941,1733890256012,-500.0,0.00010995,2]
[344932942,1733890256022,-500.0,0.00010995,2]
[344932943,1733890256031,-3928.62,0.00010995,2]
[344932944,1733890256041,-669.48,0.00010995,2]
[344932945,1733890256051,-500.0,0.00010995,2]
[344932946,1733890256061,-500.0,0.00010995,2]
[344932947,1733890256071,-2896.18,0.00010995,2]
[344932948,1733890256080,-649.03,0.00010995,2]
[344932949,1733890256090,-2387.14,0.00010995,2]
[344932950,1733890256099,-1583.61,0.00010995,2]
[344932951,1733890256108,-500.0,0.00010995,2]
[344932952,1733890256119,-500.0,0.00010995,2]
[344932953,1733890256128,-500.0,0.00010995,2]
[344932954,1733890256138,-979.24,0.00010995,2]
[344932955,1733890256148,-1263.39,0.00010995,2]
[344932956,1733890256158,-1782.13,0.00010995,2]
[344932957,1733890256168,-500.0,0.00010995,2]
[344932958,1733890256177,-1473.99,0.00010995,2]
[344932959,1733890256187,-500.0,0.00010995,2]
[344932960,1733890256200,-500.0,0.00010995,2]
[344932961,1733890256211,-500.0,0.00010995,2]
[344932962,1733890256221,-1580.46,0.00010995,2]
[344932963,1733890256231,-500.0,0.00010995,2]
[344932964,1733890256240,-331.80575343,0.00010995,2]
[344932965,1733890256251,-644.48,0.00010995,2]
[344932966,1733890256260,-540.43,0.00010995,2]
[344932967,1733890256272,-500.0,0.00010995,2]
[344932968,1733890256282,-500.0,0.00010995,2]
[344932969,1733890256291,-500.0,0.00010995,2]
[344932970,1733890256301,-5178.09,0.00010995,2]
[344932971,1733890256311,-196.00047553,0.00010995,2]
[344932972,1733890256321,-500.0,0.00010995,2]
[344932973,1733890256331,-3019.06,0.00010995,2]
[344932974,1733890256341,-500.0,0.00010995,2]
[344932975,1733890256351,-2964.01,0.00010995,2]
[344932976,1733890256360,-500.0,0.00010995,2]
[344932977,1733890256372,-500.0,0.00010995,2]
[344932978,1733890256382,-500.0,0.00010995,2]
[344932979,1733890256392,-500.0,0.00010995,2]
[344932980,1733890256402,-500.0,0.00010995,2]
[344932981,1733890256411,-500.0,0.00010995,2]
[344932982,1733890256420,-500.0,0.00010995,2]
[344932983,1733890256430,-500.0,0.00010995,2]
[344932984,1733890256443,-500.0,0.00010995,2]
[344932985,1733890256472,-666.12,0.00010995,2]
[344932986,1733890256482,-500.0,0.00010995,2]
[344932987,1733890256492,-746.42,0.00010995,2]
[344932988,1733890256502,-500.0,0.00010995,2]
[344932989,1733890256511,-1899.23,0.00010995,2]
[344932990,1733890256521,-500.0,0.00010995,2]
[344932991,1733890256531,-812.53,0.00010995,2]
[344932992,1733890256541,-500.0,0.00010995,2]
[344932993,1733890256551,-758.17,0.00010995,2]
[344932994,1733890256560,-5595.96,0.00010995,2]
[344932995,1733890256570,-508.22596057,0.00010995,2]
[344932996,1733890256579,-500.0,0.00010995,2]
[344932997,1733890256589,-500.0,0.00010995,2]
[344932998,1733890256598,-1031.11,0.00010995,2]
[344932999,1733890256608,-500.0,0.00010995,2]
[344933000,1733890256618,-500.0,0.00010995,2]
[344933001,1733890256628,-570.66,0.00010995,2]
[344933002,1733890256638,-500.0,0.00010995,2]
[344933003,1733890256648,-500.0,0.00010995,2]
[344933004,1733890256658,-959.92,0.00010995,2]
[344933005,1733890256668,-500.0,0.00010995,2]
[344933006,1733890256678,-1000.0,0.00010995,2]
[344933007,1733890256687,-500.0,0.00010995,2]
[344933008,1733890256698,-500.0,0.00010995,2]
[344933009,1733890256708,-4260.13,0.00010995,2]
[344933010,1733890256718,-500.0,0.00010995,2]
[344933011,1733890256728,-500.0,0.00010995,2]
[344933012,1733890256737,-500.0,0.00010995,2]
[344933013,1733890256747,-648.96,0.00010995,2]
[344933014,1733890256757,-500.0,0.00010995,2]
[344933015,1733890256767,-500.0,0.00010995,2]
[344933016,1733890256776,-207459.35591608,0.00010996,2]
[344933017,1733890256785,-6898.57070344,0.00010997,2]
[344933018,1733890256795,-1005.54557968,0.00010997,2]
[344933019,1733890256811,-311.66666667,0.00010997,2]
[344933020,1733890256820,-200.0,0.00010997,2]
[344933021,1733890256832,-900.9402294,0.00010997,2]
[344933022,1733890256842,-1402.48249468,0.00010997,2]
[344933023,1733890256853,-151.0,0.00010997,2]
[344933024,1733890256862,-151.0,0.00010997,2]
[344933025,1733890256872,-6299.15354257,0.00010997,2]
[344933026,1733890256881,-1622.84025914,0.00010997,2]
[344933027,1733890256891,-191120.45371924,0.00010998,2]
[344933028,1733890256900,-311.66666667,0.00010998,2]
[344933029,1733890256909,-5191.01962732,0.00010998,2]
[344933030,1733890256919,-1622.84025914,0.00010998,2]
[344933031,1733890256929,-800.0,0.00010998,2]
[344933032,1733890256938,-800.0,0.00010998,2]
[344933033,1733890256948,-800.0,0.00010998,2]
[344933034,1733890256958,-800.0,0.00010998,2]
[344933035,1733890256968,-800.0,0.00010998,2]
[344933036,1733890256977,-800.0,0.00010998,2]
[344933037,1733890256987,-328.54016396,0.00010998,2]
[344933038,1733890256996,-589.73,0.00010998,2]
[344933039,1733890257006,-828.48,0.00010998,2]
[344933040,1733890257016,-534.73,0.00010998,2]
[344933041,1733890257026,-500.0,0.00010998,2]
[344933042,1733890257035,-500.0,0.00010998,2]
[344933043,1733890257046,-500.0,0.00010998,2]
[344933044,1733890257057,-500.0,0.00010998,2]
[344933045,1733890257066,-500.0,0.00010998,2]
[344933046,1733890257077,-2220.99,0.00010998,2]
[344933047,1733890257087,-1815.2,0.00010998,2]
[344933048,1733890257097,-1151.2,0.00010998,2]
[344933049,1733890257106,-500.0,0.00010998,2]
[344933050,1733890257116,-3928.62,0.00010998,2]
[344933051,1733890257126,-500.0,0.00010998,2]